fUSD/lending_fUSD_20240117
["ID","MTS","AMOUNT","RATE_DAILY","PERIOD"]
[311850150,1705467045788,-384.0309261,0.00022998,2]
[311850151,1705467045798,-258.61319956,0.00022998,2]
[311850152,1705467045808,-155.46609812,0.00022998,2]
[311850153,1705467045817,-108.89538551,0.00022998,2]
[311850154,1705467045830,-46.70738346,0.00022998,2]
[311850155,1705467045840,-200.9387683,0.00022998,2]
[311850156,1705467045851,-262.0737123,0.00022998,2]
[311850157,1705467045861,-792.56804987,0.00022998,2]
[311850158,1705467045871,-247.58780902,0.00022998,2]
[311850159,1705467045882,-3646.79830648,0.00022998,2]
[311850160,1705467045892,-3323.92603214,0.00022998,2]
[311850161,1705467045902,-2286.39854772,0.00022998,2]
[311850162,1705467045912,-373.8716968,0.00022998,2]
[311850163,1705467045921,-1814.16564446,0.00022998,2]
[311850164,1705467045931,-172.4268108,0.00022998,2]
[311850165,1705467045941,-3683.84546794,0.00022998,2]
[311850166,1705467045950,-702.72612559,0.00022998,2]
[311850167,1705467045960,-1198.69853794,0.00022999,2]
[311850168,1705467045977,-427.23254588,0.00022999,2]
[311850169,1705467045987,-3466.15248921,0.00022999,2]
[311850171,1705467045996,-330.44179343,0.00022999,3]
[311850173,1705467046006,-151.0,0.00022999,7]
[311850175,1705467046015,-151.0,0.00022999,7]
[311850177,1705467046026,-151.0,0.00022999,7]
[311850179,1705467046035,-217.873122,0.00022999,7]
[311850181,1705467046044,-217.873122,0.00022999,7]
[311850183,1705467046053,-151.0,0.00022999,7]
[311850185,1705467046063,-642.83,0.00022999,2]
[311850187,1705467046072,-3455.95,0.00022999,2]
[311850190,1705467046082,-3455.95,0.00022999,2]
[311850191,1705467046091,-3455.95,0.00022999,2]
[311850194,1705467046101,-3455.95,0.00022999,2]
[311850196,1705467046110,-2687.92476393,0.00022999,2]
[311850198,1705467046122,-719.8,0.00022999,2]
[311850205,1705467046366,-48.22523607,0.00022999,2]
[311850206,1705467046375,-566.9257258,0.00022999,2]
[311850207,1705467048581,-2889.0242742,0.00022999,2]
[311850208,1705467048591,-3455.95,0.00022999,2]
[311850209,1705467048600,-3455.95,0.00022999,2]
[311850210,1705467048609,-3455.95,0.00022999,2]
[311850211,1705467048618,-3455.95,0.00022999,2]
[311850212,1705467048627,-3455.95,0.00022999,2]
[311850213,1705467048636,-3455.95,0.00022999,2]
[311850214,1705467048645,-3455.95,0.00022999,2]
[311850215,1705467048654,-2909.9673634,0.00022999,2]
[311850216,1705467048792,220.02136433,0.00021958,2]
[311850217,1705467049999,237.38179516,0.00021958,2]
[311850218,1705467050076,155.0,0.00021958,2]
[311850219,1705467051331,159.08276391,0.00021958,2]
[311850220,1705467051446,157.69634178,0.00021958,2]
[311850221,1705467054542,676.57525425,0.00021958,2]
[311850222,1705467055542,2179.0042789,0.00021738,2]
[311850223,1705467059994,156.77355716,0.00021958,2]
[311850224,1705467064280,155.0,0.0002,2]
[311850225,1705467064900,6083.71250564,0.00021958,2]
[311850226,1705467065334,157.85425292,0.00021958,2]
[311850227,1705467065872,273.41762448,0.00021958,2]
[311850228,1705467067497,1277.48563196,0.00021958,5]
[311850229,1705467071158,2179.0042789,0.00021738,2]
[311850230,1705467071251,2227.66342781,0.00020608,5]
[311850231,1705467076245,200.0,0.00021961,2]
[311850232,1705467080570,156.77355716,0.00021958,2]
[311850233,1705467081677,345.29,0.00021889,2]
[311850234,1705467085527,1277.48563196,0.00021958,5]
[311850235,1705467086264,157.80078831,0.0002,2]
[311850236,1705467087164,1713.67575256,0.00021738,2]
[311850237,1705467096058,156.77355716,0.00021958,2]
[311850238,1705467101065,150.83,0.00017492,2]
[311850239,1705467103849,1277.48563196,0.00021958,5]
[311850240,1705467106535,337.88,0.00019947,2]
[311850241,1705467112088,156.77355716,0.00021958,2]
[311850242,1705467124462,1277.48563196,0.00019947,5]
[311850243,1705467128469,174.18644024,0.00019946,2]
[311850244,1705467132010,195.6603063,0.00019947,2]
[311850245,1705467147746,725.75966827,0.00019947,5]
[311850246,1705467169371,377.8,0.0002176,2]
[311850247,1705467176128,1852.42,0.00021865,2]
[311850249,1705467189681,288.04,0.00021795,2]
[311850250,1705467200066,250.0,0.00021777,2]
[311850251,1705467248382,165.3,0.00021741,2]
[311850252,1705467250042,1018.26,0.00021741,2]
[311850253,1705467272588,156.62,0.00021705,2]
[311850254,1705467277353,229.24,0.00021705,2]
[311850255,1705467291218,155.0,0.0002199,2]
[311850256,1705467309372,1070.61226192,0.0002199,2]
[311850257,1705467341285,750.0,0.00021732,2]
[311850258,1705467364206,205.0,0.00021741,2]
[311850259,1705467365185,6284.48,0.0002174,2]
[311850260,1705467375231,200.0,0.00021744,2]
[311850261,1705467396517,174.18644024,0.0002199,2]
[311850262,1705467413553,155.0,0.0002199,2]
[311850263,1705467426226,2705.0,0.00021734,2]
[311850264,1705467445476,211.28,0.00021716,2]
[311850265,1705467474731,2797.91,0.00021918,2]
[311850266,1705467475186,302.4,0.00021713,2]
[311850267,1705467503841,250.0,0.00021918,2]
[311850268,1705467518066,23900.0,0.00021713,2]
[311850269,1705467520209,2000.0,0.00021744,2]
[311850270,1705467527863,200.0,0.00021775,2]
[311850271,1705467528378,2213.59,0.0002175,2]
[311850272,1705467528617,155.97,0.00021775,2]
[311850273,1705467531514,150.0,0.00021775,2]
[311850274,1705467547387,150.83,0.00017397,2]
[311850275,1705467593931,231.87,0.00021747,2]
[311850276,1705467613154,250.0,0.000205,2]
[311850277,1705467617838,332.78,0.00019866,2]
[311850278,1705467627775,188.9,0.00021758,2]
[311850279,1705467642808,160.99,0.00021921,2]
[311850280,1705467668762,881.05,0.00021725,2]
[311850281,1705467713923,250.0,0.0002173,2]
[311850282,1705467727748,322.27,0.00021731,2]
[311850284,1705467843736,150.0,0.0003,120]
[311850286,1705467919619,468.72474145,0.0002199,2]
[311850287,1705467926254,758.08,0.0002171,2]
[311850288,1705467931757,250.0,0.00021918,2]
[311850289,1705468040295,23900.0,0.00021716,2]
[311850290,1705468061735,157.89,0.00021933,2]
[311850291,1705468071828,160.99,0.00021873,2]
[311850292,1705468079698,327.92,0.00019817,2]
[311850293,1705468084087,204.0,0.00021755,2]
[311850297,1705468175573,300.78,0.00021726,2]
[311850298,1705468185784,156.62,0.00021751,2]
[311850299,1705468213112,238.57,0.00021761,2]
[311850306,1705468232029,-1070.61226192,0.00021991,2]
[311850307,1705468232039,-160.86,0.00021991,2]
[311850308,1705468232048,-523.73781275,0.00021993,2]
[311850309,1705468232057,-352.34,0.00022,2]
[311850310,1705468232067,-500.0,0.00022,2]
[311850311,1705468232076,-88.745487,0.00022,2]
[311850329,1705468232984,405.04036267,0.00021658,2]
[311850330,1705468233940,205.00002,0.00021755,2]
[311850345,1705468240308,-168.084513,0.00022,2]
[311850346,1705468240318,-246.70941861,0.00022,2]
[311850347,1705468240341,-160.99,0.00022036,2]
[311850348,1705468240351,-157.97411004,0.00022078,2]
[311850349,1705468240363,-1048.582763,0.00022078,2]
[311850350,1705468240375,-1038.16216212,0.00022078,2]
[311850351,1705468240384,-327.92,0.0002208,2]
[311850352,1705468240394,-493.86545463,0.00022137,2]
[311850353,1705468240403,-160.99,0.00022198,2]
[311850354,1705468240412,-499.99,0.00022198,2]
[311850355,1705468240421,-155.97,0.00022319,2]
[311850356,1705468240430,-33.48754248,0.00022341,2]
[311850357,1705468240716,-266.51245752,0.00022341,2]
[311850358,1705468240726,-160.99,0.00022361,2]
[311850359,1705468240737,-150.0,0.000225,2]
[311850360,1705468240747,-150.0,0.000225,2]
[311850361,1705468240756,-150.0,0.000225,2]
[311850362,1705468240767,-383.08,0.000225,2]
[311850363,1705468240777,-150.0,0.000225,2]
[311850364,1705468240786,-397.6,0.000225,2]
[311850365,1705468240795,-408.4,0.000225,2]
[311850366,1705468240804,-283.11,0.000225,2]
[311850367,1705468240814,-418.07,0.000225,2]
[311850368,1705468240823,-150.0,0.000225,2]
[311850369,1705468240832,-150.0,0.000225,2]
[311850370,1705468240841,-151.78,0.000225,2]
[311850371,1705468240851,-314.52,0.000225,2]
[311850372,1705468240865,-150.0,0.000225,2]
[311850373,1705468240875,-150.0,0.000225,2]
[311850374,1705468240884,-408.4,0.000225,2]
[311850375,1705468240896,-646.57,0.000225,2]
[311850376,1705468240905,-319.15,0.000225,2]
[311850377,1705468240916,-415.05,0.000225,2]
[311850378,1705468240926,-150.0,0.000225,2]
[311850379,1705468240939,-150.0,0.000225,2]
[311850380,1705468240950,-314.46,0.000225,2]
[311850381,1705468240959,-243.82,0.000225,2]
[311850382,1705468240969,-150.0,0.000225,2]
[311850383,1705468240978,-408.4,0.000225,2]
[311850384,1705468240988,-314.46,0.000225,2]
[311850385,1705468240997,-150.0,0.000225,2]
[311850386,1705468241008,-408.4,0.000225,2]
[311850387,1705468241019,-150.0,0.000225,2]
[311850388,1705468241030,-150.0,0.000225,2]
[311850389,1705468241039,-314.46,0.000225,2]
[311850390,1705468241050,-408.4,0.000225,2]
[311850391,1705468241059,-314.46,0.000225,2]
[311850392,1705468241069,-408.4,0.000225,2]
[311850393,1705468241079,-152.13,0.000225,2]
[311850394,1705468241089,-408.4,0.000225,2]
[311850395,1705468241099,-150.0,0.000225,2]
[311850397,1705468241109,-160.99,0.00022524,2]
[311850399,1705468241118,-502.35827723,0.00022548,2]
[311850401,1705468241128,-408.4,0.000226,2]
[311850403,1705468241137,-150.0,0.000226,2]
[311850404,1705468241146,-150.91,0.000226,2]
[311850405,1705468241156,-314.46,0.000226,2]
[311850406,1705468241166,-151.02,0.000226,2]
[311850407,1705468241177,-408.4,0.000226,2]
[311850408,1705468241186,-150.0,0.000226,2]
[311850409,1705468241196,-150.0,0.000226,2]
[311850410,1705468241207,-408.4,0.000226,2]
[311850411,1705468241216,-150.0,0.000226,2]
[311850412,1705468241226,-150.0,0.000226,2]
[311850413,1705468241236,-408.4,0.000226,2]
[311850414,1705468241247,-150.0,0.00022685,2]
[311850415,1705468241256,-150.0,0.00022685,2]
[311850416,1705468241265,-150.0,0.00022685,2]
[311850417,1705468241275,-150.0,0.00022685,2]
[311850418,1705468241286,-150.0,0.00022685,2]
[311850419,1705468241297,-160.99,0.00022687,2]
[311850420,1705468241307,-2189.3528,0.000227,2]
[311850421,1705468241318,-300.78,0.00022705,2]
[311850422,1705468241329,-150.0,0.0002274,2]
[311850423,1705468241340,-523.087,0.00022748,2]
[311850424,1705468241350,-749.353,0.00022748,2]
[311850425,1705468241360,-157.89,0.00022758,2]
[311850426,1705468241370,-150.0,0.00022758,2]
[311850427,1705468241379,-383.1988,0.00022799,2]
[311850428,1705468241389,-178.40483251,0.00022799,2]
[311850429,1705468241399,-2690.09,0.000228,2]
[311850430,1705468241409,-1000.0,0.000228,2]
[311850431,1705468241419,-84004.1056,0.000228,2]
[311850432,1705468241431,-754.0603,0.000228,2]
[311850433,1705468241443,-1000.0,0.000228,2]
[311850434,1705468241455,-500.0,0.00022815,2]
[311850435,1705468241465,-500.0,0.00022815,2]
[311850436,1705468241475,-500.0,0.00022815,2]
[311850437,1705468241485,-500.0,0.00022815,2]
[311850438,1705468241494,-160.86,0.00022819,2]
[311850439,1705468241503,-160.99,0.0002285,2]
[311850440,1705468241513,-155.97,0.00022864,2]
[311850441,1705468241522,-150.0,0.00022869,2]
[311850442,1705468241531,-233.78944578,0.00022893,3]
[311850443,1705468241541,-250.93796774,0.00022893,2]
[311850444,1705468241551,-265.31457669,0.00022893,2]
[311850445,1705468241561,-260.124375,0.00022894,2]
[311850446,1705468241571,-560.443,0.00022897,2]
[311850447,1705468241583,-505.547,0.00022898,2]
[311850448,1705468241592,-6002.30157767,0.00022898,2]
[311850449,1705468241607,-2278.21136259,0.00022898,2]
[311850450,1705468241618,-816.93176211,0.00022898,2]
[311850451,1705468241638,-347.96609508,0.00022898,2]
[311850452,1705468241650,-1153.89445625,0.00022898,2]
[311850453,1705468241660,-156.34308264,0.00022898,2]
[311850454,1705468241670,-159.33027578,0.00022898,2]
[311850455,1705468241679,-287.14777443,0.00022898,2]
[311850456,1705468241690,-847.78149391,0.00022898,2]
[311850457,1705468241701,-319.05961092,0.00022898,2]
[311850458,1705468241710,-156.76617132,0.00022898,2]
[311850459,1705468241721,-175.48305863,0.00022898,2]
[311850460,1705468241731,-22623.08727404,0.00022898,2]
[311850461,1705468241741,-268.44907911,0.00022898,2]
[311850462,1705468241751,-196.89690508,0.00022898,2]
[311850463,1705468241762,-155.35981365,0.00022898,2]
[311850464,1705468241772,-175.86421777,0.00022898,2]
[311850465,1705468241782,-876.79464213,0.00022898,2]
[311850466,1705468241792,-207.2278993,0.00022898,2]
[311850467,1705468241801,-490.83672378,0.00022898,2]
[311850468,1705468241812,-235.91156255,0.00022898,2]
[311850469,1705468241823,-3155.22096946,0.00022898,2]
[311850470,1705468241833,-264.97865919,0.00022898,2]
[311850471,1705468241842,-476.52934119,0.00022898,2]
[311850472,1705468241854,-1702.49340054,0.00022898,2]
[311850473,1705468241868,-167.38079192,0.00022898,2]
[311850474,1705468241878,-199.0672517,0.00022898,2]
[311850475,1705468241888,-150.04369136,0.00022898,2]
[311850476,1705468241899,-159.6911502,0.00022898,2]
[311850477,1705468241909,-2788.50719575,0.00022899,2]
[311850478,1705468241919,-1462.73,0.00022899,2]
[311850479,1705468241930,-1462.73,0.00022899,2]
[311850480,1705468241941,-1462.73,0.00022899,2]
[311850481,1705468241951,-1462.73,0.00022899,2]
[311850482,1705468241962,-1462.73,0.00022899,2]
[311850483,1705468241973,-1462.73,0.00022899,2]
[311850484,1705468241982,-1462.73,0.00022899,2]
[311850485,1705468241992,-1462.73,0.00022899,2]
[311850486,1705468242001,-1462.73,0.00022899,2]
[311850487,1705468242011,-1462.73,0.00022899,2]
[311850488,1705468242020,-1462.73,0.00022899,2]
[311850489,1705468242030,-1462.73,0.00022899,2]
[311850490,1705468242039,-1462.73,0.00022899,2]
[311850491,1705468242048,-1462.73,0.00022899,2]
[311850492,1705468242059,-1462.73,0.00022899,2]
[311850493,1705468242069,-1462.73,0.00022899,2]
[311850494,1705468242078,-1462.73,0.00022899,2]
[311850495,1705468242088,-1462.73,0.00022899,2]
[311850496,1705468242097,-1462.73,0.00022899,2]
[311850497,1705468242107,-1462.73,0.00022899,2]
[311850498,1705468242116,-1462.73,0.00022899,2]
[311850499,1705468242125,-1462.73,0.00022899,2]
[311850500,1705468242134,-1462.73,0.00022899,2]
[311850501,1705468242144,-1462.8172209,0.00022899,2]
[311850502,1705468242153,-150.04369134,0.00022899,2]
[311850503,1705468242164,-289.79252501,0.00022899,2]
[311850504,1705468242174,-4084.22590884,0.000229,2]
[311850505,1705468242183,-170.21898605,0.000229,2]
[311850506,1705468242193,-106805.61,0.000229,2]
[311850507,1705468242202,-150.04369134,0.000229,2]
[311850508,1705468242211,-741.60160336,0.000229,2]
[311850509,1705468242221,-150.0,0.00022938,2]
[311850510,1705468242231,-786.53888874,0.00022979,3]
[311850511,1705468242241,-830.33,0.00022979,2]
[311850512,1705468242251,-76150.25772147,0.0002298,2]
[311850513,1705468242261,-151.0,0.0002298,7]
[311850514,1705468242271,-151.0,0.0002298,7]
[311850515,1705468242282,-151.0,0.0002298,7]
[311850516,1705468242292,-151.0,0.0002298,7]
[311850517,1705468242302,-196.085809,0.0002298,7]
[311850518,1705468242313,-196.085809,0.0002298,7]
[311850519,1705468242325,-269.91342988,0.00022988,2]
[311850520,1705468242337,-2628.27708539,0.00022993,2]
[311850521,1705468242347,-9708.6015075,0.00022996,2]
[311850522,1705468242357,-731.2942755,0.00022996,2]
[311850523,1705468242366,-1928.431246,0.00022996,2]
[311850524,1705468242376,-29720.9566629,0.00022996,2]
[311850525,1705468242385,-717.59314337,0.00022997,2]
[311850526,1705468242395,-4251.4571685,0.00022997,2]
[311850527,1705468242404,-151.0,0.00022998,7]
[311850528,1705468242414,-151.0,0.00022998,7]
[311850529,1705468242423,-151.0,0.00022998,7]
[311850530,1705468242432,-153.722727,0.00022998,7]
[311850531,1705468242441,-476360.55351137,0.00022998,3]
[311850532,1705468242451,-151.0,0.00022998,7]
[311850533,1705468242460,-196.085809,0.00022998,7]
[311850534,1705468242470,-196.085809,0.00022998,7]
[311850535,1705468242480,-155.95609402,0.00022998,2]
[311850536,1705468242489,-345168.82334011,0.00022998,2]
[311850537,1705468242554,-767.34705557,0.00022998,2]
[311850538,1705468242597,-254.3916575,0.00022998,2]
[311850539,1705468242612,-7386.32512823,0.00022998,2]
[311850540,1705468242623,-596.63731299,0.00022998,2]
[311850541,1705468242636,-676.14249064,0.00022998,2]
[311850543,1705468242652,-2203.4,0.00022998,2]
[311850546,1705468243323,-2082.59317727,0.000229,2]
[311850547,1705468243334,-9.35861211,0.00022998,2]
[311850548,1705468243873,-1428.25620969,0.00022998,2]
[311850549,1705468243986,-2419.7351,0.00022998,2]
[311850550,1705468243998,-4015.27110416,0.00022998,2]
[311850564,1705468245979,-299.975,0.000226,2]
[311850568,1705468246603,-0.025,0.000226,2]
[311850569,1705468246612,-1.27574963,0.000229,2]
[311850570,1705468246628,-148.86277437,0.000229,2]
[311850571,1705468246638,-42192.49474767,0.00022998,2]
[311850572,1705468246655,-4305.873343,0.00022998,2]
[311850573,1705468246668,-2609.23511465,0.00022998,2]
[311850576,1705468417080,250.0,0.00021988,2]
[311850579,1705468481878,177.01,0.00017574,2]
[311850580,1705468507922,318.63,0.00020042,2]
[311850581,1705468514675,393.53,0.00021951,2]
[311850582,1705468533963,4343.81,0.00021929,2]
[311850586,1705468599366,181.08,0.00021929,2]
[311850587,1705468631043,294.77,0.00021925,2]
[311850588,1705468692394,250.0,0.00021921,2]
[311850589,1705468701071,238.57,0.00021921,2]
[311850594,1705468748133,230.21,0.00021921,2]
[311850595,1705468771317,151.28382655,0.00021899,2]
[311850596,1705468804217,204.0,0.00021768,2]
[311850597,1705468886824,157.93,0.00021939,2]
[311850598,1705468946722,196.69,0.00021909,10]
[311850599,1705468956627,685.17,0.00021919,2]
[311850600,1705468956909,302.69,0.00020001,2]
[311850602,1705469063823,174.36,0.00021877,2]
[311850603,1705469072438,275.11,0.00021884,2]
[311850604,1705469110191,250.0,0.000205,2]
[311850605,1705469121809,156.62,0.0002186,2]
[311850606,1705469204468,211.28,0.00021755,2]
[311850607,1705469216943,160.6489126,0.00021917,2]
[311850609,1705469375997,196.69,0.00021707,10]
[311850610,1705469385942,164.19,0.00021703,2]
[311850611,1705469398380,451.86,0.00021703,2]
[311850612,1705469416330,159.01,0.00021835,2]
[311850622,1705469432090,-225.99383968,0.00022008,2]
[311850623,1705469432101,-3859.00309907,0.00022008,2]
[311850624,1705469432113,-1363.5460318,0.00022009,2]
[311850625,1705469432123,-161.52995722,0.00022009,2]
[311850626,1705469432136,-537.57755302,0.00022017,2]
[311850627,1705469432150,-790.07621194,0.00022017,2]
[311850628,1705469432161,-163.63,0.00022019,2]
[311850629,1705469432173,-157.47,0.00022111,2]
[311850630,1705469432184,-160.6489126,0.00022114,2]
[311850631,1705469432203,-158.17,0.00022188,2]
[311850632,1705469432214,-157.93,0.00022252,2]
[311850633,1705469432226,-585.00038612,0.00022306,2]
[311850634,1705469432265,-148.09056745,0.00022306,2]
[311850635,1705469432276,-160.6489126,0.0002231,2]
[311850636,1705469432289,-159.01,0.00022404,2]
[311850637,1705469432300,-160.6489126,0.00022507,2]
[311850638,1705469432311,-318.84026188,0.00022538,2]
[311850639,1705469432353,-502.78406741,0.00022538,2]
[311850681,1705469433396,-59.73558775,0.00022538,2]
[311850682,1705469433412,-124.46826671,0.00022538,2]
[311850683,1705469433423,-1007.6061016,0.00022538,2]
[311850684,1705469433435,-78.69959067,0.00022566,2]
[311850685,1705469433450,-79.23040933,0.00022566,2]
[311850686,1705469433461,-1250.0,0.00022699,2]
[311850687,1705469433474,-309.9094,0.00022699,2]
[311850688,1705469433492,-408.4,0.000227,2]
[311850689,1705469433504,-150.0,0.000227,2]
[311850690,1705469433516,-941.06,0.000227,2]
[311850691,1705469433529,-408.4,0.000227,2]
[311850692,1705469433542,-150.02,0.000227,2]
[311850693,1705469433555,-673.53,0.000227,2]
[311850694,1705469433569,-160.6489126,0.00022703,2]
[311850695,1705469433582,-163.63,0.00022753,2]
[311850696,1705469433596,-498.45708816,0.00022797,2]
[311850697,1705469433611,-216.27734503,0.00022797,2]
[311850698,1705469433624,-898.6044241,0.00022797,2]
[311850699,1705469433642,-8901.96034038,0.00022798,2]
[311850700,1705469433654,-223.7573,0.00022798,2]
[311850701,1705469433668,-196.92902258,0.00022799,2]
[311850702,1705469433716,-260.65407742,0.00022799,2]
[311850703,1705469433729,-1000.0,0.00022799,2]
[311850704,1705469433743,-1243.94856624,0.00022799,2]
[311850705,1705469433759,-1028.74,0.00022799,2]
[311850706,1705469434008,-333.00815705,0.00022799,2]
[311850707,1705469434024,-1000.0,0.00022799,2]
[311850708,1705469434039,-677.95451397,0.00022799,2]
[311850711,1705469438624,-1056.78272985,0.00022343,2]
[311850712,1705469438634,-119849.9838744,0.00022799,2]
[311850713,1705469438667,-253.89399304,0.00022799,2]
[311850714,1705469438687,-3498.45960748,0.00022799,2]
[311850715,1705469438703,-45724.35792153,0.00022799,2]
[311850716,1705469438767,-462.2961555,0.00022799,2]
[311850717,1705469438787,-13831.60981079,0.00022799,2]
[311850718,1705469438804,-500.0,0.00022799,2]
[311850719,1705469438821,-1250.0,0.00022799,2]
[311850720,1705469438842,-275.11,0.00022863,2]
[311850722,1705469438853,-157.93,0.00022879,2]
[311850724,1705469438867,-204.0,0.00022892,2]
[311850726,1705469438879,-2827.37694163,0.00022898,2]
[311850728,1705469438891,-349.60760481,0.00022898,2]
[311850730,1705469438904,-589.85320685,0.000229,3]
[311850732,1705469438914,-3743.87374977,0.000229,2]
[311850734,1705469438928,-245.57684597,0.000229,2]
[311850736,1705469438941,-160.6489126,0.000229,2]
[311850738,1705469438953,-1978.46351834,0.000229,2]
[311850740,1705469438966,-1978.4635183,0.000229,2]
[311850742,1705469438978,-494.4010689,0.000229,2]
[311850744,1705469438992,-1978.4635183,0.00022931,2]
[311850746,1705469439013,-159.01,0.00022972,2]
[311850748,1705469439034,-179.94228658,0.0002299,2]
[311850750,1705469439051,-1000.0,0.00022994,2]
[311850753,1705469439068,-1000.0,0.00022995,2]
[311850755,1705469439088,-268.43974838,0.00022996,2]
[311850756,1705469439121,-574.10754047,0.00022996,2]
[311850759,1705469439145,-1000.0,0.00022996,2]
[311850761,1705469439167,-795.73,0.00022996,2]
[311850763,1705469439182,-500.0,0.00022996,2]
[311850764,1705469439197,-500.0,0.00022996,2]
[311850766,1705469439217,-500.0,0.00022996,2]
[311850768,1705469439246,-500.0,0.00022996,2]
[311850770,1705469439269,-500.0,0.00022996,2]
[311850772,1705469439282,-500.0,0.00022996,2]
[311850774,1705469439295,-500.0,0.00022996,2]
[311850776,1705469439315,-500.0,0.00022996,2]
[311850778,1705469439333,-500.0,0.00022996,2]
[311850780,1705469439351,-500.0,0.00022996,2]
[311850781,1705469439380,-500.0,0.00022996,2]
[311850783,1705469439397,-500.0,0.00022996,2]
[311850785,1705469439421,-500.0,0.00022996,2]
[311850787,1705469439442,-500.0,0.00022996,2]
[311850789,1705469439457,-500.0,0.00022996,2]
[311850791,1705469439482,-500.0,0.00022996,2]
[311850793,1705469439501,-500.0,0.00022996,2]
[311850795,1705469439520,-500.0,0.00022996,2]
[311850797,1705469439535,-500.0,0.00022996,2]
[311850799,1705469439547,-409.61697794,0.00022996,2]
[311850801,1705469439559,-211.63075588,0.00022997,2]
[311850803,1705469439572,-2221.74463095,0.00022997,2]
[311850804,1705469439586,-2117.50120692,0.00022997,2]
[311850808,1705469439620,-858.74623956,0.00022997,2]
[311850842,1705469440125,287.55,0.00020123,2]
[311850952,1705469442234,-287.55,0.00022386,2]
[311850954,1705469442254,-75.739,0.00022997,2]
[311851150,1705469446628,-2893.34964802,0.00022997,2]
[311851152,1705469446650,-1826.26082232,0.00022998,2]
[311851177,1705469447069,-1267.53629767,0.00022998,2]
[311851203,1705469447806,-1501.22196827,0.00022897,2]
[311851273,1705469450926,-442.11716436,0.00022897,2]
[311851274,1705469450953,-291.45384779,0.00022897,2]
[311851275,1705469450974,-2197.2411771,0.00022998,2]
[311851276,1705469450998,-20968.14475068,0.00022998,2]
[311851277,1705469451014,-19845.27820285,0.00022998,2]
[311851278,1705469451027,-6222.72411587,0.00022998,2]
[311851279,1705469451370,-2752.39499908,0.00022998,2]
[311851280,1705469451577,-2347.46759022,0.00022998,2]
[311851281,1705469451717,-2167.77944775,0.00022998,2]
[311851282,1705469869202,269.91,0.00020146,2]
[311851284,1705470297819,256.41,0.00020033,2]
[311851285,1705470422909,361.49,0.00021908,2]
[311851287,1705470470517,238.42,0.00021939,2]
[311851290,1705470535012,164.15,0.00021941,2]
[311851291,1705470573781,204.0,0.00021075,2]
[311851292,1705470610869,250.0,0.000205,2]
[311851293,1705470633213,-468.72474145,0.00022012,2]
[311851294,1705470633224,-156.62,0.00022013,2]
[311851295,1705470633234,-638.51,0.00022036,2]
[311851296,1705470633246,-5442.70539136,0.00022079,2]
[311851297,1705470633256,-150.0,0.00022081,2]
[311851298,1705470633266,-19126.13858845,0.00022114,2]
[311851299,1705470633276,-1631.04,0.00022116,2]
[311851300,1705470633286,-157.89,0.00022238,2]
[311851301,1705470633297,-500.0,0.0002226,2]
[311851302,1705470633308,-456.11054867,0.0002226,2]
[311851303,1705470633318,-256.41,0.00022297,2]
[311851304,1705470633328,-160.86,0.0002236,2]
[311851305,1705470633339,-1135.85659443,0.00022538,2]
[311851306,1705470633350,-735.87,0.00022538,2]